bitfinex-derivatives/quotes_SOLF0:USTF0_20250720
["timestamp","ask_amount","ask_price","bid_price","bid_amount"]
[1752974187551,1.87903257,179.46,179.43,3.16]
[1752974187947,7.44863257,179.46,179.43,3.16]
[1752974189553,5.5697,179.45,179.43,3.16]
[1752974190448,5.57,179.44,179.42,3.16]
[1752974190753,1.87903257,179.46,179.42,3.16]
[1752974190950,5.5702,179.44,179.42,3.16]
[1752974192151,5.5697,179.45,179.42,3.16]
[1752974192553,1.84228798,179.45,179.42,3.16]
[1752974192746,1.84228798,179.45,179.37,117.74]
[1752974192953,1.84228798,179.44,179.41,3.16]
[1752974193151,5.5705,179.43,179.41,3.16]
[1752974193352,1.84228798,179.44,179.41,3.16]
[1752974193553,1.84228798,179.42,179.35,3.16]
[1752974193752,1.84228798,179.42,179.35,8.7325]
[1752974193951,1.84228798,179.42,179.35,3.16]
[1752974194454,0.04192495,179.4,179.35,5.5726]
[1752974194647,0.04192495,179.4,179.37,3.16]
[1752974195052,5.5715,179.39,179.37,3.16]
[1752974195253,0.04192495,179.4,179.35,3.16]
[1752974195451,0.04192495,179.4,179.38,5.5715]
[1752974195652,0.04192495,179.4,179.32,117.66]
[1752974195653,1.84228798,179.46,179.37,3.16]
[1752974195851,1.84228798,179.46,179.37,3.20050639]
[1752974196248,5.5699,179.45,179.4,5.5709]
[1752974196558,5.5699,179.45,179.41,3.16]
[1752974196952,5.5699,179.45,179.41,3.20109294]
[1752974197352,210.08455872,179.54,179.42,3.16]
[1752974197858,5.5692,179.47,179.43,5.5702]
[1752974198052,5.5692,179.47,179.46,0.03736914]
[1752974198249,1.84228798,179.49,179.46,0.03736914]
[1752974198452,5.5688,179.48,179.47,3.16]
[1752974199957,5.569,179.47,179.46,0.03736533]
[1752974201159,7.41128798,179.47,179.46,0.03736533]
[1752974201457,7.41128798,179.47,179.46,3.19736533]
[1752974202861,5.569,179.47,179.46,3.19736533]
[1752974203056,7.41128798,179.47,179.46,3.19736533]
[1752974203458,7.41128798,179.47,179.46,0.03736533]
[1752974203763,5.5702,179.44,179.42,3.16]
[1752974203958,1.84228798,179.45,179.42,3.16]
[1752974204166,5.57,179.44,179.41,3.16]
[1752974204461,1.84228798,179.45,179.41,3.16]
[1752974204757,5.5703,179.43,179.42,3.16]
[1752974207263,5.5701,179.44,179.42,3.16]
[1752974207964,5.5703,179.43,179.42,3.16]
[1752974208261,1.87973213,179.45,179.4,3.16]
[1752974208565,8.3207,179.42,179.4,0.41958772]
[1752974209756,2.75,179.42,179.4,0.41958772]
[1752974209961,2.75,179.44,179.35,1.84228798]
[1752974210156,1.87973213,179.45,179.37,1.84228798]
[1752974210357,7.41208798,179.45,179.41,5.5706]
[1752974210565,7.41208798,179.45,179.42,3.2]
[1752974210758,5.5694,179.46,179.42,5.5704]
[1752974211067,0.03535905,179.45,179.44,3.2]
[1752974212268,5.60495905,179.45,179.44,3.2]
[1752974212768,0.03535905,179.45,179.44,3.2]
[1752974213565,5.5683,179.5,179.47,3.2]
[1752974213764,5.5683,179.5,179.46,5.5691]
[1752974213965,5.5683,179.5,179.49,3.2]
[1752974214865,2.75,179.49,179.48,3.23579874]
[1752974215064,2.75,179.51,179.49,3.2]
[1752974215770,2.75,179.51,179.5,3.2]
[1752974216072,2.75,179.52,179.5,3.2]
[1752974216260,2.75,179.52,179.48,0.03579874]
[1752974216466,8.3175,179.52,179.51,3.2]
[1752974216666,212.83455872,179.54,179.52,3.2]
[1752974217163,210.08455872,179.54,179.52,3.2]
[1752974217370,210.08455872,179.54,179.53,3.2]
[1752974217767,215.65145872,179.54,179.53,3.2]
[1752974219566,2.75,179.56,179.52,0.039055]
[1752974219764,2.75,179.56,179.55,3.2]
[1752974219972,2.74,179.57,179.55,3.2]
[1752974220166,2.74,179.57,179.53,5.5671]
[1752974220375,1.84228798,179.58,179.56,3.2]
[1752974220573,4.58228798,179.58,179.56,3.2]
[1752974220874,5.5661,179.57,179.56,3.2]
[1752974224473,2.74,179.56,179.53,3.2]
[1752974224679,2.74,179.55,179.54,3.2]
[1752974224973,5.5665,179.55,179.54,3.2]
[1752974225578,2.74,179.55,179.52,0.039055]
[1752974225769,1.84228798,179.53,179.52,0.039055]
[1752974225970,10.14948798,179.53,179.52,0.039055]
[1752974226172,10.14948798,179.53,179.52,5.5e-05]
[1752974226474,2.74,179.52,179.46,3.2]
[1752974226669,1.84228798,179.5,179.46,3.2]
[1752974226871,5.5687,179.48,179.47,3.2]
[1752974227867,0.03923721,179.49,179.43,374.52]
[1752974228064,2.74,179.47,179.44,3.2]
[1752974228273,5.5693,179.46,179.45,3.2]
[1752974229475,2.74,179.46,179.41,3.2]
[1752974229978,5.5699,179.45,179.41,3.2]
[1752974230775,8.3094,179.46,179.41,8.7708]
[1752974230977,8.3094,179.46,179.42,3.2]
[1752974231974,5.5697,179.45,179.42,3.2]
[1752974232774,8.3094,179.46,179.42,3.2]
[1752974233680,8.3094,179.46,179.42,8.7706]
[1752974233867,5.5694,179.46,179.43,3.2]
[1752974234479,8.35078829,179.47,179.43,3.2]
[1752974234877,5.5693,179.46,179.43,3.2]
[1752974235079,2.78168829,179.47,179.43,3.2]
[1752974236078,8.35088829,179.47,179.43,3.2]
[1752974238174,8.35088829,179.47,179.43,5.5702]
[1752974238380,8.35088829,179.47,179.44,3.2]
[1752974238577,8.35088829,179.47,179.43,5.5702]
[1752974238770,8.35088829,179.47,179.46,3.2]
[1752974244288,2.78168829,179.47,179.41,5.5706]
[1752974244482,1.84228798,179.45,179.42,3.26]
[1752974244683,0.04168829,179.47,179.42,3.26]
[1752974244889,0.04168829,179.47,179.44,5.5699]
[1752974245093,0.04168829,179.47,179.45,3.26]
[1752974245281,0.04168829,179.47,179.37,3.26]
[1752974245487,0.04168829,179.47,179.44,3.26]
[1752974245688,1.84228798,179.49,179.44,3.26]
[1752974245988,0.03599854,179.47,179.44,3.26]
[1752974247490,0.03599854,179.47,179.46,3.26]
[1752974247990,0.03599854,179.47,179.46,5.5693]
[1752974248179,4.58228798,179.53,179.46,3.26]
[1752974248581,2.74,179.53,179.46,5.10228798]
[1752974248788,2.74,179.53,179.47,3.26]
[1752974249189,2.74,179.53,179.48,3.26]
[1752974249485,2.74,179.53,179.45,0.03550608]
[1752974249689,2.74,179.53,179.49,3.26]
[1752974249885,2.74,179.53,179.5,3.26]
[1752974250088,2.74,179.52,179.5,3.26]
[1752974250488,8.3078,179.51,179.5,3.26]
[1752974251294,8.3081,179.5,179.49,0.03683624]
[1752974253296,8.3081,179.5,179.49,3.29683624]
[1752974254190,5.5681,179.5,179.49,3.29683624]
[1752974254396,2.74,179.52,179.5,3.26]
[1752974254689,2.74,179.52,179.51,3.26]
[1752974255491,8.3075,179.52,179.51,3.26]
[1752974256589,10.14978798,179.52,179.51,3.26]
[1752974256793,5.5681,179.5,179.49,0.03683624]
[1752974256993,5.5681,179.5,179.49,3.29683624]
[1752974260291,8.3081,179.5,179.49,3.29683624]
[1752974261598,5.5681,179.5,179.49,3.29683624]
[1752974262398,8.3081,179.5,179.49,3.29683624]
[1752974263500,5.5681,179.5,179.49,3.29683624]
[1752974267898,8.3081,179.5,179.49,3.29683624]
[1752974268399,5.5681,179.5,179.49,3.29683624]
[1752974269197,5.5679,179.51,179.49,3.29683624]
[1752974269803,5.5681,179.5,179.49,3.29683624]
[1752974272103,2.75,179.53,179.49,3.29683624]
[1752974272306,2.75,179.52,179.49,3.29683624]
[1752974272902,2.75,179.53,179.5,3.12]
[1752974273501,2.75,179.51,179.49,0.03683624]
[1752974273701,2.75,179.5,179.49,3.15683624]
[1752974274097,5.5681,179.5,179.49,3.15683624]
[1752974275209,5.5679,179.51,179.49,3.15683624]
[1752974276500,5.5681,179.5,179.49,3.15683624]
[1752974276699,8.97208626,179.54,179.46,1.84228798]
[1752974276904,0.03912728,179.52,179.47,3.12]
[1752974277106,5.60672728,179.52,179.48,5.5685]
[1752974277406,5.60672728,179.52,179.49,3.12]
[1752974277407,0.03912728,179.52,179.49,3.12]
[1752974277610,0.03912728,179.52,179.49,5.5682]
[1752974277811,0.03912728,179.52,179.5,3.12]
[1752974278307,2.75,179.56,179.52,3.12]
[1752974278508,0.04252088,179.53,179.52,3.12]
[1752974279712,0.04252088,179.53,179.52,8.6875]
[1752974279913,0.04252088,179.53,179.52,3.12]
[1752974281115,5.60972088,179.53,179.52,3.12]
[1752974281513,0.04252088,179.53,179.52,3.12]
[1752974282115,0.04252088,179.53,179.52,8.6875]
[1752974282414,2.75,179.6,179.52,3.12]
[1752974282813,2.75,179.6,179.54,5.5667]
[1752974283113,2.75,179.6,179.55,3.12]
[1752974283307,2.75,179.58,179.52,3.12]
[1752974283507,2.75,179.57,179.56,0.03756617]
[1752974283706,2.75,179.57,179.56,3.15756617]
[1752974284813,8.3159,179.57,179.56,3.15756617]
[1752974285005,8.3159,179.57,179.56,0.03756617]
[1752974285411,8.3159,179.57,179.56,3.15756617]
[1752974285711,2.75,179.57,179.56,3.15756617]
[1752974286404,8.3159,179.57,179.56,3.15756617]
[1752974286713,2.75,179.57,179.56,3.15756617]
[1752974288210,10.15768798,179.59,179.56,3.15756617]
[1752974288609,2.75,179.58,179.57,3.12]
[1752974289117,8.3156,179.58,179.57,3.12]
[1752974293822,2.75,179.61,179.57,3.12]
[1752974294221,1.84228798,179.6,179.56,0.03756617]
[1752974294519,2.75,179.63,179.58,3.12]
[1752974294817,5.5653,179.59,179.58,3.12]
[1752974295019,4.59228798,179.61,179.58,3.12]
[1752974295214,5.565,179.6,179.59,0.03693927]
[1752974295422,4.59228798,179.61,179.59,3.15693927]
[1752974295715,5.5646,179.62,179.59,3.15693927]
[1752974295912,9.94127011,179.66,179.59,3.15693927]
[1752974295913,1.84228798,179.64,179.59,3.15693927]
[1752974296115,2.75,179.62,179.59,3.15693927]
[1752974296917,1.84228798,179.62,179.6,3.12]
[1752974297115,2.75,179.61,179.6,3.12]
[1752974297308,8.3147,179.61,179.6,3.12]
[1752974297514,2.75,179.6,179.59,3.15693927]
[1752974297920,5.565,179.6,179.59,0.03693927]
[1752974298116,10.15728798,179.6,179.59,0.03693927]
[1752974298315,2.75,179.59,179.5,1.84228798]
[1752974298516,1.84228798,179.64,179.44,4.54429913]
[1752974298517,2.75,179.56,179.53,3.12]
[1752974298721,2.75,179.55,179.54,3.12]
[1752974299222,1.84228798,179.57,179.48,1.84228798]
[1752974299420,2.75,179.61,179.5,1.84228798]
[1752974299624,4.59228798,179.59,179.51,3.12]
[1752974299817,1.84228798,179.59,179.51,3.12]
[1752974300318,5.5659,179.58,179.54,3.03]
[1752974301116,5.566,179.57,179.54,3.03]
[1752974302214,5.60465422,179.57,179.54,3.03]
[1752974302424,4.6309422,179.57,179.51,3.03]
[1752974302717,2.75,179.55,179.51,3.03]
[1752974302921,1.84228798,179.57,179.51,3.03]
[1752974303119,0.03651697,179.55,179.51,3.03]
[1752974303518,2.78651697,179.55,179.51,3.03]
[1752974303725,2.75,179.54,179.51,3.03]
[1752974304125,5.5672,179.53,179.51,3.03]
[1752974305124,1.84228798,179.53,179.49,3.03]
[1752974305427,4.59228798,179.53,179.49,3.03]
[1752974305726,5.568,179.51,179.49,3.03]
[1752974306327,5.5682,179.5,179.44,3.03]
[1752974306526,4.59228798,179.48,179.44,3.03]
[1752974306927,10.16118798,179.48,179.44,8.5999]
[1752974307123,1.84228798,179.48,179.46,3.03]
[1752974307327,4.59228798,179.47,179.4,3.03]
[1752974307519,1.84228798,179.45,179.4,3.03]
[1752974307726,1.84228798,179.43,179.4,3.03]
[1752974308028,1.84228798,179.42,179.41,3.03]
[1752974308625,1.84228798,179.42,179.29,378.90429913]
[1752974308626,2.75,179.4,179.24,4.54429913]
[1752974308830,1.84228798,179.25,179.17,3.03]
[1752974309026,1.84228798,179.37,179.08,230.2269751]
[1752974309027,5.5688,179.48,179.34,3.03]
[1752974309227,1.84228798,179.45,179.34,3.03]
[1752974309425,114.2,179.56,179.34,3.03]
[1752974309426,1.84228798,179.41,179.34,3.03]
[1752974309727,0.03729163,179.41,179.34,4.87228798]
[1752974309927,0.03729163,179.41,179.35,3.03]
[1752974310123,0.03729163,179.41,179.36,1.84228798]
[1752974310329,0.03729163,179.41,179.28,4.54844522]
[1752974310528,1.84228798,179.4,179.3,4.87228798]
[1752974310831,1.84228798,179.46,179.32,4.87228798]
[1752974310832,1.84228798,179.42,179.32,4.87228798]
[1752974311032,5.07228798,179.42,179.33,3.03]
[1752974311232,5.07228798,179.42,179.28,1.84228798]
[1752974311233,1.84228798,179.45,179.35,3.03]
[1752974311430,0.03562872,179.39,179.35,3.03]
[1752974312829,3.23,179.38,179.33,1.84228798]
[1752974313026,3.23,179.36,179.34,3.03]
[1752974313226,5.5727,179.35,179.34,3.03]
[1752974313630,3.23,179.39,179.3,3.03]
[1752974313830,1.84228798,179.38,179.3,3.03]
[1752974314034,5.5737,179.32,179.31,3.03]
[1752974314328,5.5737,179.32,179.29,1.84228798]
[1752974314526,3.23,179.29,179.17,3.03]
[1752974314732,1.84228798,179.38,179.27,3.03]
[1752974314924,1.84228798,179.29,179.24,3.03]
[1752974315130,1.84228798,179.28,179.18,3.03]
[1752974315330,1.84228798,179.3,179.2,3.03]
[1752974315526,1.84228798,179.37,179.23,3.03]
[1752974315935,1.84228798,179.35,179.26,3.03]
[1752974316128,16.71,179.44,179.29,3.03]
[1752974316437,1.84228798,179.39,179.3,3.03]
[1752974316833,1.84228798,179.39,179.35,0.04062965]
[1752974317027,1.84228798,179.37,179.35,0.04062965]
[1752974317232,0.06,179.36,179.32,3.03]
[1752974317434,5.5734,179.33,179.32,3.03]
[1752974318738,5.5739,179.32,179.31,3.03]
[1752974320334,0.06,179.31,179.18,3.03]
[1752974320543,0.04242464,179.34,179.18,3.03]
[1752974320544,0.04242464,179.34,179.2,3.03]
[1752974320740,1.84228798,179.38,179.29,3.03]
[1752974321033,1.90228798,179.4,179.3,1.84228798]
[1752974321236,1.90228798,179.4,179.31,3.03]
[1752974321429,0.04255082,179.35,179.31,3.03]
[1752974321835,0.04255082,179.35,179.31,4.87228798]
[1752974322036,0.04255082,179.35,179.2,5.51893995]
[1752974322037,0.06,179.43,179.34,3.03]
[1752974322238,1.84228798,179.42,179.34,3.03]
[1752974322640,0.06,179.43,179.34,3.03]
[1752974322840,1.90228798,179.43,179.34,3.03]
[1752974323341,1.90228798,179.43,179.37,0.04252131]
[1752974323538,5.5715,179.39,179.38,3.03]
[1752974326146,5.5713,179.4,179.38,3.03]
[1752974326345,1.84228798,179.45,179.39,3.03]
[1752974326846,5.5715,179.4,179.39,3.03]
[1752974331042,5.5715,179.39,179.38,3.2002884]
[1752974332351,5.5713,179.4,179.39,3.16]
[1752974333448,1.90228798,179.44,179.41,3.16]
[1752974334947,5.5706,179.42,179.41,3.16]
[1752974338849,5.5711,179.41,179.39,3.16]
[1752974339153,5.5711,179.41,179.4,3.16]
[1752974342956,0.06,179.47,179.4,3.16]
[1752974343157,1.84228798,179.46,179.4,3.16]
[1752974343555,5.5707,179.42,179.4,3.16]
[1752974343752,5.5707,179.42,179.38,5.5717]
[1752974343753,5.5707,179.42,179.41,3.19801823]
[1752974345355,5.6307,179.42,179.41,1.823e-05]
[1752974345557,7.47298798,179.42,179.41,1.823e-05]
[1752974347156,5.5721,179.37,179.36,3.16]
[1752974347459,1.84228798,179.37,179.36,3.16]
[1752974347960,5.5721,179.37,179.36,3.16]
[1752974352258,0.06,179.37,179.29,7.66431196]
[1752974352458,0.06,179.29,179.21,3.16]
[1752974352758,0.03610024,179.38,179.23,0.97029178]
[1752974352956,1.84228798,179.37,179.24,3.16]
[1752974353157,1.84228798,179.31,179.24,3.16]
[1752974353363,1.84228798,179.33,179.24,3.16]
[1752974353565,1.84228798,179.35,179.26,3.16]
[1752974353751,0.03703158,179.3,179.26,3.16]
[1752974354060,0.03703158,179.3,179.2,5.00228798]
[1752974354259,1.84228798,179.31,179.21,3.16]
[1752974354460,0.03630988,179.3,179.24,1.84228798]
[1752974354757,0.03630988,179.3,179.25,3.16]
[1752974354953,5.5749,179.29,179.25,3.16]
[1752974355160,1.84228798,179.33,179.25,3.16]
[1752974355362,2.04228798,179.33,179.25,3.16]
[1752974355558,5.61308762,179.29,179.25,3.16]
[1752974356258,5.575,179.28,179.25,3.16]
[1752974358163,0.2,179.27,179.09,6.06459363]
[1752974358359,0.03818762,179.29,179.22,3.16]
[1752974358559,0.2,179.31,179.22,3.16]
[1752974359258,0.03900854,179.28,179.22,3.16]
[1752974360267,0.03900854,179.28,179.23,7.41878798]
[1752974360463,0.03900854,179.28,179.24,2.99]
[1752974361463,5.61400854,179.28,179.24,2.99]
[1752974363067,0.03900854,179.28,179.24,2.99]
[1752974363258,2.09129652,179.28,179.19,2.99]
[1752974363464,0.21,179.27,179.19,2.99]
[1752974363658,1.84228798,179.26,179.15,0.97086024]
[1752974363866,26.0604091,179.38,179.04,3.0]
[1752974363867,296.0,179.25,179.04,6.06459363]
[1752974364180,0.21,179.13,179.12,7.42218798]
[1752974364373,1.84228798,179.22,179.12,1.84228798]
[1752974364769,1.84228798,179.22,179.13,2.99]
[1752974365166,0.03885818,179.19,179.13,2.99]
[1752974365370,5.5783,179.18,179.13,2.99]
[1752974365573,0.03885818,179.19,179.15,2.99]
[1752974366667,5.61665818,179.19,179.15,8.569]
[1752974366873,5.61665818,179.19,179.16,2.99]
[1752974367074,0.03885818,179.19,179.16,2.99]
[1752974367270,0.03885818,179.19,179.18,2.99]
[1752974369270,0.21,179.18,179.06,2.99]
[1752974369471,0.21,179.18,178.99,6.06459363]
[1752974369472,0.21,179.24,179.17,0.03538023]
[1752974369673,1.84228798,179.22,179.18,2.99]
[1752974369873,2.05228798,179.22,179.18,2.99]
[1752974370072,1.84228798,179.26,179.16,1.84228798]
[1752974370267,5.5764,179.24,179.21,2.99]
[1752974370571,5.5764,179.24,179.23,2.99]
[1752974372574,5.5759,179.26,179.2,2.99]
[1752974372979,1.84228798,179.27,179.2,5.5774]
[1752974373280,5.5762,179.24,179.21,2.99]
[1752974374375,5.5762,179.24,179.19,5.61808456]
[1752974374579,5.5762,179.24,179.23,2.99]
[1752974374878,0.17,179.22,179.01,2.99]
[1752974375073,0.17,179.22,179.02,439.29059225]
[1752974375277,0.17,179.22,179.06,0.97140225]
[1752974375469,0.17,179.22,179.15,2.99]
[1752974375669,1.84228798,179.23,179.15,2.99]
[1752974375873,5.5776,179.2,179.15,8.5689]
[1752974376076,1.84228798,179.24,179.16,2.99]
[1752974376273,0.03796387,179.21,179.16,2.99]
[1752974376471,0.03796387,179.21,179.17,2.99]
[1752974376677,0.03796387,179.21,179.19,2.99]
[1752974378385,0.03796387,179.21,179.2,2.99]
[1752974379784,1.84228798,179.3,179.2,2.99]
[1752974379978,0.2,179.34,179.23,1.84228798]
[1752974380185,2.04228798,179.34,179.24,2.99]
[1752974380587,5.5744,179.3,179.26,2.99]
[1752974381180,5.5744,179.3,179.26,3.03041415]
[1752974382088,1.84228798,179.35,179.28,2.99]
[1752974382283,0.9707113,179.39,179.28,2.99]
[1752974382284,0.2,179.32,179.28,2.99]
[1752974382483,1.84228798,179.33,179.27,2.99]
[1752974382784,5.5742,179.31,179.28,0.03879897]
[1752974383177,5.5742,179.31,179.3,2.99]
[1752974384688,5.5746,179.29,179.28,0.03879897]
[1752974384988,2.04228798,179.33,179.28,0.03879897]
[1752974385285,5.5746,179.29,179.28,0.03879897]
[1752974385480,5.5746,179.29,179.28,3.02879897]
[1752974385687,0.2,179.32,179.28,3.02879897]
[1752974386289,5.5741,179.31,179.28,3.02879897]
[1752974386786,0.2,179.32,179.28,3.02879897]
[1752974386985,0.2,179.32,179.29,2.99]
[1752974387184,0.2,179.36,179.29,2.99]
[1752974387388,2.04228798,179.33,179.3,2.99]
[1752974387892,5.574,179.32,179.3,2.99]
[1752974388085,5.574,179.32,179.3,3.03088863]
[1752974389396,5.574,179.31,179.3,3.03088863]
[1752974390196,7.61598798,179.33,179.3,3.03088863]
[1752974390490,7.41598798,179.33,179.3,0.04088863]
[1752974390690,5.5737,179.32,179.31,3.26]
[1752974390891,2.04228798,179.35,179.32,3.26]
[1752974391194,5.5731,179.34,179.33,3.26]
[1752974393497,5.5739,179.32,179.31,3.26]
[1752974394790,5.5735,179.33,179.31,3.26]
[1752974395098,5.5735,179.33,179.32,3.26]
[1752974400502,0.97052179,179.42,179.31,3.26]
[1752974400699,1.84228798,179.37,179.31,3.26]
[1752974401000,1.84228798,179.38,179.32,5.5736]
[1752974401204,2.04228798,179.36,179.32,0.0353942]
[1752974401396,1.84228798,179.36,179.33,3.26]
[1752974401797,2.04228798,179.36,179.32,0.0353942]
[1752974401997,1.84228798,179.36,179.32,0.0353942]
[1752974402200,1.84228798,179.36,179.35,3.26]
[1752974402700,2.04228798,179.36,179.33,3.26]
[1752974402902,2.04228798,179.36,179.34,3.26]
[1752974403299,1.84228798,179.36,179.34,3.26]
[1752974403504,5.5728,179.35,179.34,3.26]
[1752974405205,5.5734,179.33,179.32,3.2953942]
[1752974407104,5.5734,179.33,179.16,6.06459363]
[1752974407105,0.2,179.26,179.19,3.26]
[1752974407402,9.3504091,179.33,179.15,3.26]
[1752974407602,9.3504091,179.31,179.2,3.26]
[1752974407808,1.84228798,179.31,179.24,3.26]
[1752974408000,0.2,179.26,179.16,3.26]
[1752974408306,0.2,179.29,179.2,5.10228798]
[1752974408506,1.84228798,179.3,179.21,3.26]
[1752974408702,0.2,179.31,179.23,3.29780163]
[1752974408902,1.84228798,179.32,179.23,3.29780163]
[1752974409104,0.2,179.34,179.24,1.84228798]
[1752974409305,5.5743,179.3,179.25,3.26]
[1752974409606,5.5743,179.3,179.27,3.26]
[1752974411997,5.5746,179.29,179.27,3.26]
[1752974412707,5.5744,179.3,179.27,3.26]
[1752974412908,3.68457596,179.28,179.12,4.55644777]
[1752974413211,2.04228798,179.31,179.23,3.26]
[1752974413401,1.84228798,179.34,179.25,3.26]
[1752974413598,0.2,179.33,179.26,1.84228798]
[1752974413805,0.2,179.33,179.27,3.26]
[1752974413806,5.5742,179.31,179.27,3.26]
[1752974414006,5.5742,179.31,179.28,3.26]
[1752974414604,5.61032288,179.31,179.28,3.26]
[1752974414806,0.03612288,179.31,179.28,3.26]
[1752974415912,0.03612288,179.31,179.3,3.26]
[1752974416109,0.2,179.38,179.3,5.10228798]
[1752974416314,0.2,179.38,179.31,3.26]
[1752974416613,0.2,179.4,179.34,3.26]
[1752974416813,0.97079253,179.44,179.34,3.26]
[1752974416814,1.84228798,179.42,179.34,3.26]
[1752974417115,0.2,179.43,179.35,3.26]
[1752974417308,0.2,179.45,179.35,3.26]
[1752974417508,5.57,179.44,179.39,5.5712]
[1752974417808,2.04228798,179.46,179.4,3.26]
[1752974418110,5.5706,179.42,179.4,3.26]
[1752974418312,1.84228798,179.42,179.33,1.84228798]
[1752974418504,0.2,179.33,179.25,3.26]
[1752974418705,0.2,179.33,179.27,3.26]
[1752974418904,0.2,179.37,179.36,0.03547326]
[1752974419304,5.573,179.35,179.33,3.26]
[1752974419508,2.04228798,179.37,179.21,3.26]
[1752974419708,5.5736,179.33,179.28,5.5748]
[1752974419915,0.2,179.36,179.29,3.26]
[1752974420215,5.5731,179.34,179.29,0.03846142]
[1752974420409,5.5731,179.34,179.31,3.27]
[1752974420610,5.5731,179.34,179.32,3.27]
[1752974421215,5.5728,179.35,179.3,3.27]
[1752974421619,2.04228798,179.39,179.3,3.27]
[1752974421910,5.5722,179.37,179.32,3.27]
[1752974422312,0.2,179.44,179.34,3.27]
[1752974422615,1.84228798,179.41,179.34,3.27]
[1752974423016,1.84228798,179.41,179.36,0.0377083]
[1752974423315,2.04228798,179.41,179.37,3.27]
[1752974423515,2.04228798,179.41,179.38,3.27]
[1752974423516,5.5713,179.4,179.38,3.27]
[1752974424115,5.5715,179.39,179.38,3.27]
[1752974425214,2.04228798,179.41,179.38,3.27]
[1752974425415,1.84228798,179.43,179.37,3.27]
[1752974425810,0.2,179.44,179.37,3.27]
[1752974426114,149.03963314,179.47,179.38,0.03664601]
[1752974426319,1.84228798,179.46,179.39,3.27]
[1752974426709,7.41168798,179.46,179.39,3.27]
[1752974426914,1.84228798,179.48,179.39,1.84228798]
[1752974427110,1.84228798,179.48,179.4,3.27]
[1752974427516,5.5694,179.46,179.42,3.27]
[1752974427713,1.84228798,179.48,179.42,3.30611633]
[1752974428115,0.2,179.53,179.43,3.27]
[1752974428312,1.84228798,179.52,179.44,3.27]
[1752974428720,0.2,179.56,179.45,3.27]
[1752974428909,1.84228798,179.54,179.46,3.30673711]
[1752974429716,5.5681,179.51,179.46,8.87603711]
[1752974429918,5.5681,179.51,179.47,3.27]
[1752974430113,122.76,179.6,179.47,5.11228798]
[1752974430318,122.76,179.6,179.49,3.27]
[1752974430319,0.2,179.59,179.49,3.27]
[1752974430816,5.5672,179.53,179.51,3.27]
[1752974431216,0.2,179.59,179.51,3.27]
[1752974431417,0.2,179.54,179.5,0.03690089]
[1752974431613,0.2,179.53,179.5,0.03690089]
[1752974431814,3.20460377,179.53,179.5,3.30690089]
[1752974432008,5.5678,179.52,179.5,3.30690089]
[1752974432216,3.20460377,179.52,179.5,0.03690089]
[1752974432415,0.2,179.52,179.5,0.03690089]
[1752974432614,5.5678,179.51,179.5,0.03690089]
[1752974432808,5.7678,179.51,179.5,0.03690089]
[1752974433310,5.7675,179.52,179.5,0.03690089]
[1752974433508,3.20460377,179.54,179.5,3.30690089]
[1752974433712,3.20460377,179.54,179.51,3.27]
[1752974434214,0.2,179.53,179.5,8.9e-07]
[1752974434416,0.2,179.47,179.4,3.27]
[1752974434613,3.00460377,179.46,179.4,3.27]
[1752974434818,3.00460377,179.46,179.4,5.5709]
[1752974435115,3.00460377,179.46,179.43,3.27]